bitfinex/quotes_BTCUSD_20260126
["timestamp","ask_amount","ask_price","bid_price","bid_amount"]
[1769445621518,0.03,87588.0,87570.0,0.67930489]
[1769445621867,0.02272434,87589.0,87568.0,0.01991541]
[1769445621868,0.03,87587.0,87573.0,0.02363411]
[1769445622069,0.00010022,87584.0,87566.0,0.02363411]
[1769445622684,0.03,87583.0,87566.0,0.1091166]
[1769445623065,0.03,87583.0,87566.0,0.76478738]
[1769445623592,0.00010022,87584.0,87566.0,0.76478738]
[1769445623846,0.03,87579.0,87565.0,0.17552]
[1769445624237,0.03,87579.0,87567.0,0.02363411]
[1769445624437,0.03,87579.0,87568.0,0.65567078]
[1769445624794,0.00010022,87586.0,87568.0,0.65567078]
[1769445624795,0.03,87578.0,87568.0,0.65567078]
[1769445625000,0.03,87578.0,87568.0,0.67930489]
[1769445625647,0.03,87578.0,87570.0,0.65567078]
[1769445625844,0.03,87577.0,87570.0,0.67930489]
[1769445626854,0.03,87577.0,87568.0,0.002]
[1769445627068,0.03,87576.0,87568.0,0.002]
[1769445627875,0.03,87575.0,87568.0,0.002]
[1769445629049,0.00010022,87573.0,87568.0,0.002]
[1769445629268,0.05282456,87569.0,87568.0,0.002]
[1769445629489,0.03,87569.0,87568.0,0.002]
[1769445630858,0.02272434,87583.0,87568.0,0.002]
[1769445631069,0.01141761,87584.0,87568.0,0.002]
[1769445631070,0.00010022,87581.0,87568.0,0.002]
[1769445631288,0.02272434,87580.0,87568.0,0.002]
[1769445631492,0.03,87579.0,87568.0,0.002]
[1769445632558,0.03,87585.0,87569.0,0.65567078]
[1769445632789,0.03,87585.0,87572.0,0.02363411]
[1769445633001,0.03,87585.0,87572.0,0.67930489]
[1769445633217,0.03,87585.0,87568.0,0.002]
[1769445633663,0.06414182,87585.0,87568.0,0.002]
[1769445633881,0.05272434,87585.0,87568.0,0.002]
[1769445634107,0.06424204,87585.0,87568.0,0.002]
[1769445634480,0.03,87580.0,87568.0,0.002]
[1769445634801,0.05272434,87576.0,87568.0,0.002]
[1769445635248,0.03,87574.0,87568.0,0.002]
[1769445635471,0.05282456,87569.0,87568.0,0.001]
[1769445635630,0.00010022,87565.0,87546.0,0.17552]
[1769445635799,0.03,87564.0,87546.0,0.17552]
[1769445636010,0.03,87564.0,87550.0,0.6558052]
[1769445636423,0.03,87564.0,87552.0,0.67930489]
[1769445636647,0.03,87564.0,87552.0,0.02363411]
[1769445636853,0.00010022,87566.0,87552.0,0.02363411]
[1769445637234,0.09123836,87574.0,87553.0,0.65567078]
[1769445637235,0.03,87569.0,87553.0,0.65567078]
[1769445637433,0.03,87569.0,87553.0,0.67930489]
[1769445638057,0.03,87573.0,87553.0,0.67930489]
[1769445638269,0.03,87573.0,87550.0,0.00013442]
[1769445638270,0.03,87573.0,87555.0,0.67930489]
[1769445639165,0.03,87572.0,87555.0,0.67930489]
[1769445639367,0.03,87569.0,87555.0,0.02363411]
[1769445639565,0.03,87565.0,87555.0,0.02363411]
[1769445639788,0.48091081,87580.0,87555.0,0.02363411]
[1769445639789,0.03,87563.0,87555.0,0.02363411]
[1769445639970,0.03,87561.0,87555.0,0.02363411]
[1769445640170,0.03,87561.0,87550.0,0.00013442]
[1769445640809,0.03,87561.0,87551.0,0.65567078]
[1769445641159,0.03,87560.0,87552.0,0.02363411]
[1769445641361,0.03,87560.0,87552.0,0.67930489]
[1769445642131,0.03,87559.0,87552.0,0.67930489]
[1769445643158,0.03,87558.0,87552.0,0.67930489]
[1769445643329,0.03,87558.0,87552.0,0.02363411]
[1769445643513,0.11431311,87567.0,87552.0,0.02363411]
[1769445643717,0.02272434,87570.0,87552.0,0.02363411]
[1769445643917,0.11431311,87573.0,87555.0,0.65567078]
[1769445644123,0.11431311,87573.0,87556.0,0.02363411]
[1769445644124,0.03,87572.0,87556.0,0.02363411]
[1769445644320,0.03,87572.0,87558.0,0.02363411]
[1769445644971,0.01141721,87587.0,87561.0,0.65567078]
[1769445645111,0.03,87584.0,87564.0,0.02363411]
[1769445645338,0.03,87584.0,87567.0,0.65567078]
[1769445645539,0.05744722,87600.0,87567.0,0.65567078]
[1769445645540,0.0460317,87600.0,87584.0,0.01]
[1769445645987,0.05942629,87599.0,87581.0,0.65567078]
[1769445646194,0.03,87595.0,87582.0,0.02363411]
[1769445646429,0.03,87588.0,87569.0,0.02363411]
[1769445646634,0.03,87588.0,87570.0,0.02363411]
[1769445647032,0.03,87588.0,87570.0,0.65567078]
[1769445647192,0.08955533,87593.0,87571.0,0.02363411]
[1769445647193,0.02105622,87593.0,87571.0,0.02363411]
[1769445647402,0.03,87599.0,87575.0,0.02363411]
[1769445647598,0.03,87599.0,87578.0,0.65567078]
[1769445647805,0.03,87599.0,87581.0,0.65567078]
[1769445648172,0.03,87599.0,87585.0,0.65567078]
[1769445648385,0.03,87599.0,87588.0,0.02363411]
[1769445648588,0.03,87598.0,87589.0,0.02363411]
[1769445649511,0.0003117,87600.0,87589.0,0.02363411]
[1769445649512,0.03,87597.0,87589.0,0.02363411]
[1769445649813,0.13591318,87614.0,87589.0,0.06424541]
[1769445649974,0.0003117,87618.0,87601.0,0.61882002]
[1769445650194,0.0003117,87618.0,87603.0,0.02434353]
[1769445650387,0.0003117,87618.0,87604.0,0.61882002]
[1769445650519,0.03,87616.0,87605.0,0.64316355]
[1769445651180,0.03,87616.0,87606.0,0.64316355]
[1769445651328,0.03,87616.0,87607.0,0.02434353]
[1769445651529,0.03,87615.0,87607.0,0.02434353]
[1769445652534,0.03,87614.0,87607.0,0.02434353]
[1769445652776,0.03,87614.0,87594.0,0.02434353]
[1769445653019,0.03,87614.0,87594.0,0.64316355]
[1769445653185,0.03,87614.0,87595.0,0.02434353]
[1769445653559,0.16955585,87610.0,87591.0,0.17552]
[1769445653760,0.16955585,87610.0,87591.0,0.02434353]
[1769445653896,0.03,87610.0,87591.0,0.02434353]
[1769445654093,0.03,87610.0,87593.0,0.02434353]
[1769445654683,0.03,87609.0,87593.0,0.02434353]
[1769445655216,0.03,87609.0,87594.0,0.64316355]
[1769445655412,0.13955585,87614.0,87594.0,0.64316355]
[1769445655413,0.03,87608.0,87594.0,0.64316355]
[1769445655874,0.03,87608.0,87594.0,0.02434353]
[1769445656053,0.01141331,87617.0,87595.0,0.61882002]
[1769445656234,0.01141331,87617.0,87598.0,0.02434353]
[1769445656434,0.01141344,87616.0,87599.0,0.02434353]
[1769445656637,0.03,87616.0,87599.0,0.02434353]
[1769445656954,0.03,87612.0,87599.0,0.02434353]
[1769445657288,0.03,87612.0,87587.0,0.17552]
[1769445657289,0.03,87608.0,87590.0,0.61882002]
[1769445657482,0.03,87608.0,87591.0,0.02434353]
[1769445657703,0.0583494,87608.0,87587.0,0.17552]
[1769445657907,0.03,87602.0,87587.0,0.17552]
[1769445658063,0.16955585,87602.0,87587.0,0.17552]
[1769445659103,0.03,87601.0,87589.0,0.02434353]
[1769445659421,0.03,87601.0,87591.0,0.02434353]
[1769445659623,0.03,87601.0,87587.0,0.19986353]
[1769445659906,0.03,87601.0,87591.0,0.02434353]
[1769445660108,0.03,87600.0,87593.0,0.61882002]
[1769445660353,0.03,87600.0,87593.0,0.64316355]
[1769445660510,0.2306596,87621.0,87600.0,0.62882002]
[1769445660744,0.16218288,87621.0,87602.0,0.64316355]
[1769445661181,0.0003117,87624.0,87605.0,0.02434353]
[1769445661182,0.03,87620.0,87605.0,0.02434353]
[1769445661397,0.03,87620.0,87596.0,0.01141604]
[1769445661398,0.03,87620.0,87609.0,0.02434353]
[1769445661565,0.0003117,87624.0,87612.0,0.61882002]
[1769445661773,0.0003117,87624.0,87599.0,0.01141565]
[1769445661774,0.0003117,87624.0,87614.0,0.64316355]
[1769445661986,0.14845833,87620.0,87603.0,0.17548]
[1769445662153,0.03,87612.0,87597.0,0.17548]
[1769445662583,0.03,87612.0,87598.0,0.61882002]
[1769445663176,0.03,87611.0,87598.0,0.61882002]
[1769445663774,0.03,87611.0,87597.0,0.17548]
[1769445663974,0.041415,87604.0,87583.0,0.02434353]
[1769445664138,0.03,87600.0,87581.0,0.61882002]
[1769445664340,0.03,87600.0,87585.0,0.61882002]
[1769445664546,0.03,87600.0,87588.0,0.02434353]
[1769445664754,0.18249958,87610.0,87580.0,0.17548]
[1769445664755,0.17108536,87610.0,87600.0,0.01]
[1769445664948,0.18249958,87610.0,87600.0,0.01]
[1769445665197,0.03,87609.0,87590.0,0.64316355]
[1769445665374,0.03,87609.0,87590.0,0.70747991]
[1769445666131,0.03,87607.0,87590.0,0.08865989]
[1769445666334,0.03,87607.0,87590.0,0.64316355]
[1769445666740,0.03,87607.0,87592.0,0.64316355]
[1769445667119,0.03,87606.0,87592.0,0.64316355]
[1769445667803,0.01172409,87624.0,87606.0,0.01]
[1769445668020,0.01141252,87623.0,87606.0,0.09958109]
[1769445668232,0.03,87618.0,87606.0,0.02434353]
[1769445669087,0.03,87618.0,87586.0,0.01141734]
[1769445669088,0.03,87611.0,87582.0,0.61882002]
[1769445669337,0.03,87608.0,87585.0,0.02434353]
[1769445669514,0.03,87606.0,87589.0,0.02434353]
[1769445669686,0.03,87606.0,87590.0,0.02434353]
[1769445669891,0.03,87603.0,87590.0,0.02434353]
[1769445670090,0.04141513,87603.0,87584.0,0.02434353]
[1769445670292,0.03,87603.0,87584.0,0.02434353]
[1769445670697,0.04141513,87603.0,87584.0,0.02434353]
[1769445671108,0.03,87603.0,87584.0,0.02434353]
[1769445671305,0.1279293,87603.0,87584.0,0.02434353]
[1769445671558,0.1279293,87603.0,87569.0,0.0002079]
[1769445671559,0.03,87590.0,87569.0,0.0002079]
[1769445671759,0.18281824,87584.0,87569.0,0.0002079]
[1769445672032,0.18281824,87584.0,87572.0,0.61882002]
[1769445672033,0.03,87584.0,87572.0,0.61882002]
[1769445672232,0.03,87584.0,87569.0,0.02455143]
[1769445672735,0.03,87583.0,87572.0,0.61882002]
[1769445673043,0.17548,87600.0,87586.0,0.02434353]
[1769445673252,0.01141474,87606.0,87586.0,0.02434353]
[1769445673408,0.18689461,87607.0,87586.0,0.02434353]
[1769445673587,0.01141474,87606.0,87586.0,0.02434353]
[1769445673788,0.03,87600.0,87586.0,0.02434353]
[1769445674818,0.03,87599.0,87586.0,0.02434353]
[1769445675393,0.22552116,87615.0,87589.0,0.61882002]
[1769445675625,0.05707355,87607.0,87579.0,0.61882002]
[1769445675836,0.15703924,87599.0,87579.0,0.02434353]
[1769445676103,0.03,87595.0,87579.0,0.02434353]
[1769445676285,0.03,87591.0,87572.0,0.02434353]
[1769445676489,0.01141656,87592.0,87572.0,0.02434353]
[1769445676490,0.03,87586.0,87572.0,0.02434353]
[1769445677210,0.05574908,87586.0,87572.0,0.02434353]
[1769445677543,0.03,87580.0,87566.0,0.02434353]
[1769445678683,0.03,87579.0,87566.0,0.02434353]
[1769445679299,0.04141826,87579.0,87559.0,0.1476]
[1769445679515,0.03,87575.0,87559.0,0.1476]
[1769445679715,0.03,87575.0,87557.0,0.19956711]
[1769445680463,0.03,87575.0,87557.0,0.27513133]
[1769445680662,0.03,87579.0,87560.0,0.61381102]
[1769445680864,0.03,87579.0,87562.0,0.61381102]
[1769445681065,0.03,87579.0,87562.0,0.63789813]
[1769445681703,0.03,87580.0,87562.0,0.63789813]
[1769445681928,0.03,87580.0,87563.0,0.02408711]
[1769445682231,0.03,87580.0,87564.0,0.08133781]
[1769445682431,0.03,87575.0,87563.0,0.02408711]
[1769445682591,0.17404783,87578.0,87557.0,0.17548]
[1769445682592,0.03,87573.0,87557.0,0.17548]
[1769445682930,0.19262944,87569.0,87554.0,0.02434691]
[1769445683171,0.22749409,87569.0,87554.0,0.02434691]
[1769445683341,0.23891365,87569.0,87554.0,0.02434691]
[1769445683788,0.03,87567.0,87554.0,0.0002598]
[1769445684093,0.03,87565.0,87554.0,0.0002598]
[1769445684657,0.03,87563.0,87554.0,0.0002598]
[1769445685588,0.16262944,87566.0,87554.0,0.0002598]
[1769445685589,0.03,87565.0,87554.0,0.0002598]
[1769445686342,0.13591318,87603.0,87554.0,0.0002598]
[1769445686468,0.01135334,87570.0,87554.0,0.0002598]
[1769445686676,0.0316263,87569.0,87554.0,0.0002598]
[1769445687473,0.0016263,87568.0,87554.0,0.0002598]
[1769445688077,0.03,87565.0,87554.0,0.0002598]
[1769445688796,0.03,87565.0,87556.0,0.61381102]
[1769445688998,0.03,87573.0,87556.0,0.61381102]
[1769445689319,0.03,87573.0,87557.0,0.02408711]
[1769445690030,0.15931791,87572.0,87557.0,0.02408711]
[1769445690220,0.0414193,87571.0,87557.0,0.02408711]
[1769445690519,0.03,87569.0,87557.0,0.02408711]
[1769445690770,0.03,87563.0,87554.0,0.0002598]
[1769445691182,0.17073799,87565.0,87550.0,6.721e-05]
[1769445691183,0.11151672,87555.0,87550.0,6.721e-05]
[1769445691383,0.18925138,87553.0,87537.0,0.02408711]
[1769445691792,0.21366086,87553.0,87537.0,0.02408711]
[1769445693231,0.00348374,87553.0,87537.0,0.02408711]
[1769445693661,0.00348374,87553.0,87532.0,0.22124]
[1769445693837,0.03504141,87558.0,87539.0,0.02709187]
[1769445694174,0.00504141,87557.0,87539.0,0.02709187]
[1769445694413,0.03,87558.0,87541.0,0.02709187]
[1769445694635,0.01141865,87576.0,87558.0,0.0099212]
[1769445694808,0.03,87574.0,87560.0,0.61381102]
[1769445695015,0.03,87572.0,87560.0,0.61381102]
[1769445695157,0.03,87568.0,87558.0,0.0099212]
[1769445695360,0.03,87568.0,87549.0,0.61381102]
[1769445695578,0.03,87568.0,87551.0,0.61381102]
[1769445695997,0.03,87568.0,87553.0,0.63789813]
[1769445696212,0.03,87569.0,87553.0,0.63789813]
[1769445696634,0.00504141,87568.0,87551.0,0.0613811]
[1769445696868,0.00504141,87568.0,87548.0,0.63789813]
[1769445697071,0.00504141,87564.0,87538.0,0.0002598]
[1769445697204,0.05945089,87562.0,87542.0,0.02408711]
[1769445697402,0.05945089,87562.0,87543.0,0.63789813]
[1769445697606,0.02440948,87572.0,87562.0,0.0099212]
[1769445698025,0.02945089,87572.0,87554.0,0.02408711]
[1769445698241,0.03,87571.0,87554.0,0.63789813]
[1769445699944,0.03,87571.0,87544.0,0.01142282]
[1769445699945,0.0002598,87593.0,87573.0,0.61381102]
[1769445700140,0.02440948,87592.0,87573.0,0.61381102]
[1769445700345,0.02440948,87592.0,87575.0,0.61381102]
[1769445700780,0.0002598,87593.0,87577.0,0.61381102]
[1769445700980,0.0002598,87593.0,87580.0,0.02408711]
[1769445701110,0.04167623,87593.0,87562.0,0.01142047]
[1769445701321,0.04167623,87593.0,87558.0,0.186981]
[1769445701322,0.03,87589.0,87566.0,0.61381102]
[1769445701529,0.17643264,87589.0,87569.0,0.02408711]
[1769445701730,0.17643264,87589.0,87569.0,0.63789813]
[1769445701930,0.03,87585.0,87558.0,0.17556]
[1769445702140,0.03,87581.0,87559.0,0.63789813]
[1769445702347,0.03,87581.0,87562.0,0.63789813]
[1769445702554,0.03,87581.0,87564.0,0.61381102]
[1769445702763,0.03,87581.0,87565.0,0.02408711]
[1769445702968,0.0002598,87593.0,87569.0,0.02408711]
[1769445703242,0.0002598,87593.0,87573.0,0.02408711]
[1769445703459,0.0302598,87593.0,87577.0,0.02408711]
[1769445704499,0.0002598,87593.0,87579.0,0.02408711]
[1769445704714,0.0002598,87593.0,87581.0,0.63789813]
[1769445705492,0.0002598,87593.0,87564.0,0.61381102]
[1769445705493,0.0302598,87593.0,87564.0,0.61381102]
[1769445705886,0.0302598,87593.0,87568.0,0.01141969]
[1769445706056,0.0302598,87593.0,87576.0,0.61381102]
[1769445706293,0.0302598,87593.0,87579.0,0.02408711]
[1769445706465,0.0002598,87593.0,87580.0,0.63789813]
[1769445707654,0.03,87603.0,87586.0,0.66381297]
[1769445707814,0.03,87601.0,87586.0,0.66381297]
[1769445708266,0.03,87601.0,87586.0,0.63789813]
[1769445708474,0.05440948,87601.0,87586.0,0.63789813]
[1769445708895,0.05440948,87601.0,87586.0,0.02408711]
[1769445709093,0.0530967,87599.0,87581.0,0.63958609]
[1769445709395,0.01141278,87621.0,87599.0,0.0099212]
[1769445709636,0.18693278,87621.0,87600.0,0.63958609]
[1769445710003,0.18693278,87621.0,87599.0,0.0099212]
[1769445710004,0.11371416,87620.0,87602.0,0.63958609]
[1769445710290,0.11371416,87620.0,87587.0,0.01141721]
[1769445710291,0.14371416,87619.0,87604.0,0.63958609]
[1769445710623,0.1757798,87624.0,87593.0,0.01141643]
[1769445710624,0.0002598,87624.0,87607.0,0.02496308]
[1769445710825,0.0002598,87624.0,87610.0,0.63958609]
[1769445711023,0.0002598,87624.0,87606.0,0.02496308]
[1769445711175,0.03450909,87624.0,87606.0,0.02496308]
[1769445711346,0.001,87621.0,87606.0,0.02496308]
[1769445711546,0.001,87621.0,87607.0,0.63958609]
[1769445711803,0.001,87621.0,87611.0,0.63958609]
[1769445711999,0.03,87623.0,87611.0,0.66454917]
[1769445712701,0.03,87622.0,87611.0,0.66454917]
[1769445713203,0.000281,87626.0,87611.0,0.66454917]
[1769445713451,0.0230967,87638.0,87614.0,0.02496308]
[1769445713581,0.03,87632.0,87615.0,0.64872789]
[1769445713792,0.03,87630.0,87615.0,0.64872789]
[1769445713988,0.24398297,87639.0,87615.0,0.64872789]
[1769445713989,0.03,87628.0,87615.0,0.64872789]
[1769445714310,0.0230967,87642.0,87628.0,0.0099212]
[1769445714489,0.0230967,87640.0,87628.0,0.0099212]
[1769445714701,0.2798471,87639.0,87621.0,0.66454917]
[1769445714910,0.0230967,87638.0,87622.0,0.0673691]
[1769445715117,0.0530967,87637.0,87622.0,0.0673691]
[1769445715726,0.0530967,87637.0,87622.0,0.63958609]
[1769445716148,0.0530967,87637.0,87615.0,0.0091418]
[1769445716149,0.3098471,87634.0,87615.0,0.64872789]
[1769445716359,0.03,87632.0,87616.0,0.02496308]
[1769445716559,0.03,87632.0,87617.0,0.63958609]
[1769445716796,0.03,87630.0,87616.0,0.02496308]
[1769445716997,0.03,87630.0,87611.0,0.66454917]
[1769445717203,0.03,87622.0,87608.0,0.17548]
[1769445717375,0.0530967,87622.0,87608.0,0.17548]
[1769445717742,0.0530967,87622.0,87609.0,0.63958609]
[1769445718080,0.03,87622.0,87609.0,0.63958609]
[1769445718272,0.03,87621.0,87611.0,0.66454917]
[1769445719086,0.03,87621.0,87611.0,0.74855209]
[1769445719305,0.0530967,87626.0,87611.0,0.63958609]
[1769445721184,0.03,87621.0,87608.0,0.17548]
[1769445721316,0.03,87621.0,87603.0,0.04572]
[1769445721317,7.88e-05,87611.0,87603.0,0.04572]
[1769445721718,0.03,87614.0,87603.0,0.04572]
[1769445722333,0.06847624,87622.0,87603.0,0.04572]
[1769445722334,0.17548,87630.0,87605.0,0.02496308]
[1769445722539,0.0230967,87629.0,87614.0,0.64950729]
[1769445722806,0.0230967,87629.0,87614.0,0.63958609]
[1769445723162,0.0230967,87640.0,87614.0,0.66454917]
[1769445723372,0.0230967,87640.0,87609.0,0.01141435]
[1769445723373,0.03,87637.0,87616.0,0.63958609]
[1769445723573,0.0530967,87637.0,87618.0,0.63958609]
[1769445723916,0.0530967,87635.0,87618.0,0.63958609]
[1769445724633,0.0530967,87635.0,87600.0,0.7095762]
[1769445724634,0.21330373,87633.0,87605.0,0.63958609]
[1769445724780,0.21330373,87633.0,87597.0,0.01141591]
[1769445724781,0.03,87625.0,87606.0,0.66454917]
[1769445724964,0.0530967,87623.0,87606.0,0.66454917]
[1769445725183,0.03,87623.0,87610.0,0.63958609]
[1769445725410,0.0230967,87634.0,87607.0,0.07216847]
[1769445725411,0.0230967,87634.0,87613.0,0.02496308]
[1769445725584,0.0230967,87634.0,87616.0,0.63958609]
[1769445725786,0.0230967,87634.0,87618.0,0.63958609]
[1769445725987,0.03,87633.0,87618.0,0.63958609]
[1769445726339,0.03,87633.0,87620.0,0.63958609]
[1769445726686,0.04072649,87643.0,87620.0,0.63958609]
[1769445726878,0.04215226,87642.0,87620.0,0.66454917]
[1769445727223,0.03,87639.0,87620.0,0.66454917]
[1769445727657,0.0530967,87639.0,87620.0,0.66454917]
[1769445727832,0.03,87633.0,87620.0,0.07485481]
[1769445728008,0.0530967,87631.0,87613.0,0.66454917]
[1769445728209,0.03,87629.0,87613.0,0.66454917]
[1769445728377,0.0530967,87629.0,87613.0,0.66454917]
[1769445728603,0.03,87629.0,87613.0,0.63958609]
[1769445728807,0.03,87629.0,87602.0,0.0002732]
[1769445728808,0.03,87625.0,87607.0,0.02496308]
[1769445729019,0.03,87625.0,87608.0,0.63958609]
[1769445729238,0.03,87625.0,87609.0,0.08402624]
[1769445730213,0.03,87622.0,87608.0,0.63958609]
[1769445731332,0.03,87619.0,87605.0,0.17544]
[1769445731462,0.0530967,87617.0,87605.0,0.17544]
[1769445731666,0.03,87615.0,87605.0,0.17544]
[1769445731874,0.0530967,87613.0,87602.0,0.0002732]
[1769445732249,0.03,87613.0,87603.0,0.63958609]
[1769445732453,0.03,87613.0,87602.0,0.0002732]
[1769445732454,0.03,87613.0,87606.0,0.63958609]
[1769445732703,0.0230967,87625.0,87605.0,0.02496308]
[1769445732704,0.0230967,87625.0,87613.0,0.0099212]
[1769445732868,0.21272275,87624.0,87613.0,0.0099212]
[1769445733240,0.21272275,87624.0,87606.0,0.63958609]
[1769445734014,7.88e-05,87606.0,87602.0,0.0002732]
[1769445734597,0.03,87612.0,87602.0,0.0002732]
[1769445736578,0.0230967,87613.0,87602.0,0.0002732]
[1769445736579,0.03,87610.0,87602.0,0.0002732]
[1769445737775,0.0230967,87613.0,87602.0,0.0002732]
[1769445737776,0.03,87609.0,87602.0,0.0002732]
[1769445737971,0.03,87609.0,87586.0,0.0002732]
[1769445737972,0.03,87601.0,87586.0,0.0002732]
[1769445738178,0.03,87595.0,87586.0,0.0002732]
[1769445738392,0.03,87595.0,87570.0,0.48126647]
[1769445738393,0.0530967,87585.0,87564.0,0.13655695]
[1769445738562,0.2282874,87609.0,87550.0,0.0004041]
[1769445738563,0.03,87577.0,87557.0,0.13655695]
[1769445738736,0.03,87577.0,87560.0,0.02427987]
[1769445738939,0.03,87577.0,87556.0,0.31199695]
[1769445738940,0.02397456,87590.0,87577.0,0.01]
[1769445739234,0.02397456,87590.0,87569.0,0.60056674]
[1769445739235,0.19690452,87587.0,87569.0,0.60056674]
[1769445739413,0.02397456,87586.0,87569.0,0.60056674]
[1769445739619,0.19690452,87587.0,87569.0,0.60056674]
[1769445739620,0.03,87585.0,87569.0,0.60056674]
[1769445739823,0.61717965,87610.0,87569.0,0.60056674]
[1769445739824,0.02397456,87597.0,87585.0,0.01]
[1769445740179,0.02397456,87597.0,87575.0,0.02427987]
[1769445740180,0.02397456,87593.0,87575.0,0.02427987]
[1769445740495,0.02397456,87592.0,87575.0,0.62484661]
[1769445740717,0.03,87591.0,87575.0,0.62484661]
[1769445741109,0.05397456,87591.0,87575.0,0.62484661]
[1769445741737,0.05397456,87591.0,87575.0,0.68733127]
[1769445741958,0.06849365,87600.0,87575.0,0.68733127]
[1769445741959,0.03,87590.0,87575.0,0.60056674]
[1769445742271,0.03,87590.0,87577.0,0.60056674]
[1769445742984,0.03,87593.0,87577.0,0.60056674]
[1769445743856,0.03,87593.0,87575.0,0.02427987]
[1769445744056,0.26343886,87591.0,87575.0,0.02427987]
[1769445744259,0.28978275,87591.0,87575.0,0.02427987]
[1769445744458,0.28978275,87591.0,87575.0,0.62484661]
[1769445744820,0.26343886,87591.0,87575.0,0.62484661]
[1769445745045,0.03,87590.0,87575.0,0.60056674]
[1769445745245,0.03,87590.0,87577.0,0.60056674]
[1769445745867,0.03,87590.0,87577.0,0.62484661]
[1769445746206,0.03,87589.0,87577.0,0.62484661]
[1769445746805,0.03,87589.0,87578.0,0.02427987]
[1769445747010,0.03,87589.0,87579.0,0.60056674]
[1769445747212,0.03,87588.0,87578.0,0.02427987]
[1769445748165,0.03,87592.0,87578.0,0.02427987]
[1769445749000,0.03,87587.0,87559.0,0.60056674]
[1769445749202,0.03,87581.0,87559.0,0.60056674]
[1769445749528,0.02397456,87578.0,87556.0,0.17544]
[1769445749724,0.02397456,87574.0,87556.0,0.17544]
[1769445749901,0.05397456,87569.0,87556.0,0.17544]
[1769445750102,0.03,87567.0,87556.0,0.17544]
[1769445750484,0.03,87567.0,87559.0,0.02427987]
[1769445750726,0.03,87567.0,87560.0,0.60056674]
[1769445750870,0.02397456,87577.0,87560.0,0.60056674]
[1769445751071,0.2394643,87576.0,87559.0,0.02427987]
[1769445751281,0.03,87576.0,87560.0,0.60056674]
[1769445751480,0.03,87576.0,87561.0,0.67816741]
[1769445751894,0.02397456,87577.0,87556.0,0.17544]
[1769445751895,0.04141891,87574.0,87556.0,0.17544]
[1769445752096,0.03,87570.0,87556.0,0.17544]
[1769445752296,0.05397456,87568.0,87556.0,0.17544]
[1769445754447,0.03,87567.0,87557.0,0.60056674]
[1769445754650,0.03,87567.0,87559.0,0.62484661]
[1769445755036,0.2094643,87576.0,87559.0,0.62484661]
[1769445755237,0.02397456,87575.0,87559.0,0.62484661]
[1769445755424,0.03,87574.0,87559.0,0.62484661]
[1769445756869,0.03,87573.0,87560.0,0.02427987]
[1769445757071,0.0353923,87583.0,87563.0,0.60056674]
[1769445757318,0.02397456,87583.0,87563.0,0.62484661]
[1769445757434,0.02397456,87582.0,87563.0,0.62484661]
[1769445757633,0.02397456,87580.0,87556.0,0.77600674]
[1769445757889,0.03,87574.0,87556.0,0.17544]
[1769445758188,0.03,87568.0,87556.0,0.17544]
[1769445758391,0.01141721,87587.0,87568.0,0.01]
[1769445758392,0.02397456,87585.0,87568.0,0.01]
[1769445758534,0.2094643,87583.0,87568.0,0.01]
[1769445758742,0.02397456,87581.0,87568.0,0.01]
[1769445759188,0.02397456,87581.0,87564.0,0.60056674]
[1769445759189,0.03,87580.0,87564.0,0.56175574]
[1769445759346,0.03,87580.0,87556.0,0.17544]
[1769445759347,0.02397456,87591.0,87562.0,0.01142047]
[1769445759543,0.01141578,87598.0,87574.0,0.02427987]
[1769445759850,0.01141578,87598.0,87564.0,0.0685213]
[1769445759851,0.24788719,87594.0,87577.0,0.02427987]
[1769445760078,0.03,87591.0,87574.0,0.60056674]
[1769445760285,0.03,87591.0,87576.0,0.62484661]
[1769445760556,0.03,87591.0,87578.0,0.60056674]
[1769445761121,0.03,87590.0,87578.0,0.60056674]
[1769445762008,0.03,87590.0,87570.0,0.60056674]
[1769445762200,0.01141669,87591.0,87560.0,0.01142074]
[1769445762201,0.03,87589.0,87572.0,0.60056674]
[1769445763144,0.03,87588.0,87572.0,0.60056674]
[1769445763366,0.03,87588.0,87573.0,0.06248466]
[1769445763577,0.03,87588.0,87577.0,0.02427987]
[1769445763737,0.03,87588.0,87578.0,0.60056674]
[1769445764155,0.03,87587.0,87578.0,0.60056674]
[1769445765417,0.03,87586.0,87578.0,0.60056674]
[1769445765756,0.02397456,87597.0,87579.0,0.02427987]
[1769445765959,0.02397456,87597.0,87580.0,0.62484661]
[1769445766336,0.03,87596.0,87583.0,0.02427987]
[1769445766753,0.03,87596.0,87583.0,0.62484661]
[1769445767436,0.03,87600.0,87583.0,0.62484661]
[1769445768057,0.03,87594.0,87573.0,0.02427987]
[1769445768243,0.03,87594.0,87576.0,0.60056674]
[1769445769128,0.25930336,87595.0,87576.0,0.60056674]
[1769445769129,0.03,87592.0,87576.0,0.60056674]
[1769445769515,0.24788719,87595.0,87571.0,0.17552]
[1769445769516,0.30186463,87590.0,87571.0,0.17552]
[1769445769711,0.05397744,87590.0,87572.0,0.6228327]
[1769445769917,0.03,87590.0,87573.0,0.02494727]
[1769445770113,0.03,87590.0,87572.0,0.70723997]
[1769445770114,0.03,87590.0,87575.0,0.02494727]
[1769445770327,0.03,87590.0,87578.0,0.6228327]
[1769445770564,0.03,87599.0,87590.0,0.00440582]
[1769445770976,0.03,87599.0,87582.0,0.64777997]
[1769445771180,0.04141565,87599.0,87583.0,0.064778]
[1769445771342,0.05397744,87599.0,87583.0,0.064778]
[1769445771546,0.30186463,87599.0,87582.0,0.64777997]
[1769445771744,0.03,87597.0,87582.0,0.64777997]
[1769445772288,0.01141539,87601.0,87567.0,0.04572]
[1769445772289,0.03,87593.0,87573.0,0.02494727]
[1769445772520,0.03,87589.0,87573.0,0.64777997]
[1769445772903,0.03,87589.0,87573.0,0.6228327]
[1769445773108,0.03,87589.0,87567.0,0.05713982]
[1769445773109,0.24788719,87599.0,87589.0,0.00881161]
[1769445773441,0.03,87604.0,87589.0,0.00881161]
[1769445773752,0.03,87602.0,87589.0,0.00881161]